Cogmind - Beta 15 @@@ ROGUE MODE // 2025.05.09 @ 23:21:41 Player: Spitfire Result: Destroyed by D-53 Grenadier with Mini Grenade Launcher Performance ------------- Evolutions (0) 0 Regions Visited (4) 800 Robots Destroyed (41) 205 Value Destroyed (1224) 1224 Prototype IDs (36) 720 Alien Tech Used (0) 0 Bonus (406) 406 TOTAL SCORE: 3355 Bonus ------- Follower Combat Kills 106 Aligned with FarCom 300 Cogmind --------- Core Integrity 0/250 Matter 235/300 Energy 140/140 System Corruption 0% Temperature Cool (2) Movement Treading (240) Ox1 Location -9/Mines Parts ------- > --- POWER (1) -------- Light Deuterium Engine > --- PROPULSION (2) --- Light Treads > --- UTILITY (2) ------ Small Storage Unit Large Storage Unit > --- WEAPON (2) ------- Heavy Assault Rifle Slug Cannon > --- INVENTORY (15) --- Ion Engine Light Treads Medium Storage Unit Large Storage Unit Experimental Sensor Array Targeting Computer Cloak of Protection Reactive Plating Hacking Suite Hacking Suite High-powered Tractor Beam Assault Rifle Heavy Assault Rifle Datajack Peak State ------------ > --- POWER ------------ Light Angular Momentum Engine > --- PROPULSION ------- Light Treads Light Treads > --- UTILITY ---------- Medium Storage Unit Large Storage Unit > --- WEAPON ----------- Heavy Assault Rifle Heavy Assault Rifle > --- INVENTORY -------- Ion Engine Ion Engine Light Nuclear Core Light Treads Small Storage Unit Large Storage Unit Targeting Computer Hacking Suite Hacking Suite Assault Rifle Heavy Assault Rifle Heavy Assault Rifle Grenade Launcher Datajack Datajack [Rating: 15] Favorites ----------- Power Ion Engine Engine Ion Engine Power Core Light Nuclear Core Propulsion Light Treads Treads Light Treads Utility Large Storage Unit Device Sensor Array Storage Large Storage Unit Weapon Heavy Assault Rifle Ballistic Gun Heavy Assault Rifle Ballistic Cannon Slug Cannon Launcher Grenade Launcher Special Melee Weapon Datajack Build | -11 -10 -10 -10 -9 ------- Run | Yrd Mat Min Exi Min Slots Evolved . | . . . . . Power . | . . . . . Propulsion . | . . . . . Utility . | . . . . . Weapon . | . . . . . Parts Attached 27 | 6 8 9 1 3 Power 6 | 1 1 4 . . Engine 5 | 1 1 3 . . Core 1 | . . 1 . . Reactor . | . . . . . Propulsion 7 | 2 1 2 . 2 Treads 7 | 2 1 2 . 2 Leg . | . . . . . Wheel . | . . . . . Hover . | . . . . . Flight . | . . . . . Utility 4 | 1 3 . . . Device 1 | . 1 . . . Storage 3 | 1 2 . . . Processor . | . . . . . Hackware . | . . . . . Protection . | . . . . . Artifact . | . . . . . Weapon 10 | 2 3 3 1 1 Energy Gun . | . . . . . Energy Cannon . | . . . . . Ballistic Gun 7 | 2 3 2 . . Ballistic Cannon 1 | . . . . 1 Launcher 1 | . . 1 . . Special Weapon . | . . . . . Impact Weapon . | . . . . . Slashing Weapon . | . . . . . Piercing Weapon . | . . . . . Special Melee Weapon 1 | . . . 1 . Unidentified Prototypes . | . . . . . Parts Lost 5 | . 3 . . 2 Power . | . . . . . Propulsion 3 | . 2 . . 1 Utility . | . . . . . Weapon 2 | . 1 . . 1 Highest Loss Streak 2 | . 2 . . 2 To Critical Strikes . | . . . . . Average Backups 11 | 2 8 12 14 14 Power 1 | . 1 1 1 1 Propulsion . | . . . 1 1 Utility 5 | . 2 5 8 9 Weapon 3 | 1 2 3 3 2 Tool/Special . | . . . . . Unused Backups 11 | . 2 . . 9 Power 1 | . 1 . . . Propulsion . | . . . . . Utility 8 | . . . . 8 Weapon 1 | . 1 . . . Tool/Special 1 | . . . . 1 Average Slot Usage (%) 93 | . 92 95 89 100 Engine 14 | . 14 14 14 14 Treads 24 | . 21 23 28 28 Storage 26 | . 25 28 28 28 Ballistic Gun 23 | . 27 27 8 27 Special Melee Weapon 2 | . . . 9 . Peak Build Rating 15 | 6 9 15 14 15 Average Rating 10 | 4 7 11 11 14 On Entrance 8 | . 6 9 14 14 Naked Turns . | . . . . . Heaviest Build 45 | 14 41 45 36 36 Greatest Support 40 | 40 40 40 40 40 Greatest Overweight (x) 2 | . 2 2 . . Average Overweight (x) . | . . . . . Largest Inventory Capacity 15 | 8 15 15 15 15 Average Capacity 14 | 7 13 15 15 15 Most Carried 15 | 5 12 15 15 15 Average Carried 11 | 2 8 12 14 14 Final Capacity 15 | 8 15 15 15 15 Final Carried 15 | 2 11 14 15 14 Class Distribution -------------------- 100% | Mutant Dominant Class ---------------- Mutant | -10/Materials Mutant | -10/Mines Mutant | -10/Exiles Mutant | -9/Mines Resources | -11 -10 -10 -10 -9 ----------- Run | Yrd Mat Min Exi Min Matter Collected 1379 | 253 503 416 . 207 Remotely . | . . . . . Salvage Created 1491 | 88 746 561 . 96 Parts 87 | 1 50 31 . 5 Haulers Intercepted . | . . . . . Recyclers Shooed . | . . . . . Parts Field Recycled . | . . . . . Retrieved Matter . | . . . . . Parts Self-Destructed . | . . . . . Prevented . | . . . . . Kills | -11 -10 -10 -10 -9 ------- Run | Yrd Mat Min Exi Min Combat Hostiles Destroyed 33 | . 17 14 . 2 Guns 33 | . 17 14 . 2 Classes Destroyed 10 | 1 6 2 . 1 Tunneler 1 | . 1 . . . Recycler 1 | 1 . . . . Mechanic 1 | . 1 . . . Operator 3 | . 3 . . . Watcher 3 | . 3 . . . Swarmer 3 | . 3 . . . Grunt 26 | . 14 11 . 1 Brawler 1 | . . . . 1 Sentry 2 | . . 2 . . Assembled 1 | . . 1 . . Best Kill Streak 6 | 1 6 6 . 2 Combat Bots Only 6 | . 5 6 . 2 Max Kills in Single Turn 1 | 1 1 1 . 1 Gunslinging . | . . . . . Exploded . | . . . . . Melee . | . . . . . Uniques/NPCs Destroyed . | . . . . . Combat | -11 -10 -10 -10 -9 -------- Run | Yrd Mat Min Exi Min Hostile Shots Fired 165 | . 92 54 . 19 Missed 48 | . 28 15 . 5 Hits 117 | . 64 39 . 14 Melee 2 | . . . . 2 Projectile 115 | . 64 39 . 12 AOE 12 | . . . . 12 Critical Strikes 3 | . 1 1 . 1 Damage Taken 1830 | . 725 542 . 563 Core 293 | . 99 87 . 107 Absorbed by Shields . | . . . . . Core Remaining (%) 100 | 100 . . . . Volleys Fired 140 | 1 84 43 . 12 Largest 2 | 2 2 2 . 2 Hottest 63 | 40 46 53 . 63 Shots Fired 275 | 2 168 81 . 24 Gun 262 | 2 168 72 . 20 Cannon 1 | . . . . 1 Launcher 12 | . . 9 . 3 Special . | . . . . . Kinetic 263 | 2 168 72 . 21 Thermal . | . . . . . Explosive 12 | . . 9 . 3 Electromagnetic . | . . . . . Robot Hit Streak 13 | 2 11 13 . 3 Robot Miss Streak 6 | . 6 3 . 1 Penetration Max . | . . . . . Secondary Targets 4 | . 3 1 . . Max Gunslinging Chain 1 | . 1 1 . . Shots Hit Robots 163 | 2 101 44 2 14 Core Hits 80 | 2 44 21 . 13 Critical Kills 1 | . 1 . . . Critical Parts Destroyed 1 | . 1 . . . Critical Strikes 2 | . 2 . . . Destroy 2 | . 2 . . . Melee Attacks 2 | . . . 2 . Impact . | . . . . . Slashing . | . . . . . Piercing . | . . . . . Sneak Attacks 2 | . . . 2 . Combat Hostiles . | . . . . . Follow-up Attacks . | . . . . . Damage Inflicted 2322 | 27 1362 695 . 238 Guns 2187 | 27 1345 640 . 175 Cannons . | . . . . . Explosions 89 | . . 26 . 63 Melee . | . . . . . Ramming 46 | . 17 29 . . Kinetic 2187 | 27 1345 640 . 175 Thermal . | . . . . . Explosive 89 | . . 26 . 63 Electromagnetic . | . . . . . Impact . | . . . . . Slashing . | . . . . . Piercing . | . . . . . Highest Corruption . | . . . . . Average Corruption . | . . . . . Corruption Purged . | . . . . . Corruption Blocked . | . . . . . Overload Shots . | . . . . . Overflow Damage . | . . . . . Projectiles . | . . . . . Explosions . | . . . . . Melee . | . . . . . Knockbacks 2 | . 1 1 . . Impact 2 | . 1 1 . . Kinetic . | . . . . . Secondary . | . . . . . Self-Inflicted Damage 70 | . . 62 . 8 Shots 4 | . . 3 . 1 Rammed 13 | . 8 5 . . Targets Rammed 14 | . 9 5 . . Kicked . | . . . . . Crushed 1 | . 1 . . . Highest Temperature 22 | . 22 12 . 2 Average Temperature 4 | . 5 3 . 2 Received Heat Transfer 615 | . 369 234 . 12 Siege Activations . | . . . . . Martial Activations . | . . . . . Shielding Activations . | . . . . . Robots Disrupted . | . . . . . Combat Hostiles . | . . . . . Robots Corrupted . | . . . . . Combat Hostiles . | . . . . . Parts Fried . | . . . . . Impact Corruptions . | . . . . . Robots Melted . | . . . . . Combat Hostiles . | . . . . . Parts Melted . | . . . . . Heat Transferred . | . . . . . Parts Sabotaged . | . . . . . Parts Stolen . | . . . . . Parts Stripped . | . . . . . Power Chain Reactions . | . . . . . Alert | -11 -10 -10 -10 -9 ------- Run | Yrd Mat Min Exi Min Maximum Alert Level . | . . . . . Low Security (%) 100 | 100 100 100 . 100 Level 1 . | . . . . . Level 2 . | . . . . . Level 3 . | . . . . . Level 4 . | . . . . . Level 5 . | . . . . . High Security . | . . . . . Max Security . | . . . . . Peak Influence 137 | 5 137 137 . 40 Initial 15 | . . 15 . . Average 44 | 1 57 40 . 6 Influence Increases 1077 | 5 508 494 . 70 Destroy 0b10 Robot/C 760 | . 340 380 . 40 Destroy 0b10 Robot/NC 45 | 5 40 . . . Destroy Leader 116 | . 66 40 . 10 Allied During Kill 21 | . . 21 . . Successful Hack 52 | . 44 8 . . Disable Machine 15 | . . 15 . . Destroy Structure 53 | . 3 30 . 20 Lose Combat Pursuer 15 | . 15 . . . Influence Decreases 1076 | 5 467 444 91 69 Entered New Map 117 | . . 26 91 . Time Decay 860 | 5 437 358 . 60 Lost Part 39 | . 30 . . 9 Lost Ally 60 | . . 60 . . Squads Dispatched 6 | . 3 3 . . Investigation 2 | . 1 1 . . Extermination . | . . . . . Reinforcement 2 | . 2 . . . Assault 2 | . . 2 . . Garrison . | . . . . . Intercept . | . . . . . Searches Triggered . | . . . . . Construction Impeded . | . . . . . Haulers Reinforced . | . . . . . Active Scanning Responses . | . . . . . Cargo Convoy Interrupts . | . . . . . Stealth | -11 -10 -10 -10 -9 --------- Run | Yrd Mat Min Exi Min Distress Signals . | . . . . . Communications Jammed . | . . . . . Distress Signals . | . . . . . Times Spotted 61 | . 35 22 . 4 Peak Tracking Total 6 | . 5 6 . 2 Tactical Retreats 1 | . 1 . . . Traps | -11 -10 -10 -10 -9 ------- Run | Yrd Mat Min Exi Min Traps Triggered 1 | . 1 . . . Indirectly . | . . . . . Trap Hack Attempts . | . . . . . Triggered . | . . . . . Disarmed . | . . . . . Reprogrammed . | . . . . . Reused . | . . . . . Traps Extracted . | . . . . . Installed . | . . . . . Triggered . | . . . . . Machines | -11 -10 -10 -10 -9 ---------- Run | Yrd Mat Min Exi Min Machines Disabled 1 | . . 1 . . Max in Single Turn 1 | . . 1 . . Machines Repaired . | . . . . . Machines Dismantled . | . . . . . Machines Sabotaged . | . . . . . Overloaded Fab Kills . | . . . . . Hacking | -11 -10 -10 -10 -9 --------- Run | Yrd Mat Min Exi Min Machines Accessed 11 | . 5 2 2 2 Terminals 7 | . 5 1 . 1 Fabricators . | . . . . . Repair Stations . | . . . . . Recycling Units . | . . . . . Scanalyzers . | . . . . . Garrison Access . | . . . . . Total Hacks 46 | . 12 6 24 4 Successful 39 | . 9 5 24 1 Failed 7 | . 3 1 . 3 Catastrophic 1 | . 1 . . . Database Lockouts . | . . . . . Manual 9 | . 3 3 1 2 Terminals 20 | . 12 5 . 3 Fabricators . | . . . . . Repair Stations . | . . . . . Recycling Units . | . . . . . Scanalyzers . | . . . . . Garrison Access . | . . . . . Terminal Hacks 37 | . 8 4 24 1 Record 24 | . . 1 23 . Robot Analysis 1 | . 1 . . . Prototype ID Bank 1 | . 1 . . . Open Door 2 | . . 1 . 1 Level Access Points 1 | . . 1 . . Branch Access Points 1 | . 1 . . . Alert Level 3 | . 2 1 . . Locate Traps 1 | . 1 . . . Maintenance Status 1 | . 1 . . . Zone Layout 1 | . 1 . . . Proto ID Catalog 1 | . . . 1 . Fabricator Hacks . | . . . . . Repair Station Hacks . | . . . . . Recycling Unit Hacks . | . . . . . Scanalyzer . | . . . . . Garrison Access Hacks . | . . . . . Unauthorized Hacks 2 | . 1 1 . . Terminals 2 | . 1 1 . . Operators 2 | . 1 1 . . Fabricators . | . . . . . Repair Stations . | . . . . . Recycling Units . | . . . . . Scanalyzers . | . . . . . Garrison Access . | . . . . . Data Cores Recovered 1 | . 1 . . . Used . | . . . . . Hacking Detections 5 | . 3 1 . 1 Full Trace Events 2 | . 1 . . 1 Feedback Events . | . . . . . Feedback Blocked . | . . . . . Robot Schematics Acquired . | . . . . . Robots Built . | . . . . . Authchips . | . . . . . Time . | . . . . . Total Robot Build Rating . | . . . . . Part Schematics Acquired . | . . . . . Parts Built . | . . . . . Authchips . | . . . . . Time . | . . . . . Total Part Build Rating . | . . . . . Parts Repaired . | . . . . . Time . | . . . . . Parts Recycled . | . . . . . Recycled Matter . | . . . . . Retrieved Matter . | . . . . . Retrieved Components . | . . . . . Parts Scanalyzed . | . . . . . Part Schematics Acquired . | . . . . . Parts Damaged . | . . . . . Bothacking | -11 -10 -10 -10 -9 ------------ Run | Yrd Mat Min Exi Min Used RIF Installer . | . . . . . Robots Hacked 2 | . . . 2 . Non-combat 1 | . . . 1 . Combat 1 | . . . 1 . Robot Hacks Applied 2 | . . . 2 . parse_system 2 | . . . 2 . Relay Couplers Released . | . . . . . Fabnet Peak Effective % . | . . . . . Robots Rewired . | . . . . . Allies Hacked . | . . . . . Hacks Repelled . | . . . . . Allies | -11 -10 -10 -10 -9 -------- Run | Yrd Mat Min Exi Min Total Allies 4 | . . 3 . 1 Largest Group 2 | . . 2 . 1 Highest-Rated Group 38 | . . 38 . 31 Highest-Rated Ally 31 | . . 31 . 31 Total Orders . | . . . . . Ally Attacks 22 | . . 20 . 2 Total Damage 312 | . . 290 . 22 Kills 6 | . . 6 . . Allies Corrupted . | . . . . . Allies Melted . | . . . . . Intel | -11 -10 -10 -10 -9 ------- Run | Yrd Mat Min Exi Min Active Infowar (turns) 287 | . 287 . . . Sensors 287 | . 287 . . . Robot Analysis Total 1 | . 1 . . . Derelict Logs Recovered 2 | . . 2 . . Drone Launches . | . . . . . Drone Recoveries . | . . . . . Exploration | -11 -10 -10 -10 -9 ------------- Run | Yrd Mat Min Exi Min Turns Passed 4146 | 73 1577 1240 927 329 Spaces Moved 1881 | 44 590 497 572 178 Core 12 | 12 . . . . Treads 1869 | 32 590 497 572 178 Legs . | . . . . . Wheels . | . . . . . Hover . | . . . . . Flight . | . . . . . Fastest Speed 50 | 50 160 160 160 160 Average Speed 190 | 130 211 217 160 160 Slowest Speed 320 | 160 320 320 160 160 Overloaded Moves . | . . . . . Propulsion Burnouts . | . . . . . Robots Hopped . | . . . . . Potential Cave-ins . | . . . . . Cave-ins Triggered . | . . . . . Exploration Rate (%) 65 | 3 88 87 91 59 Regions Visited 4 Branch Regions 3 Pre-discovered Areas 1 | . . . 1 . Known Exits Taken 1 | . 1 . . . Unknown Exits Taken 3 | 1 . 1 1 . Scrap Searched 2 | . . 1 . 1 Spaces Dug 10 | . . 10 . . Terrain Destroyed 77 | . . 53 . 24 Melee . | . . . . . Projectile 1 | . . . . 1 AOE 76 | . . 53 . 23 Terrain Rammed . | . . . . . Walls Destroyed . | . . . . . Machines Disabled . | . . . . . Actions | -11 -10 -10 -10 -9 --------- Run | Yrd Mat Min Exi Min Total 2160 | 58 748 570 584 200 Wait 35 | . 35 . . . Move 1877 | 43 589 496 571 178 Hop . | . . . . . Pick Up 37 | 8 17 9 2 1 Fast Attach . | . . . . . Attach 15 | 6 3 1 4 1 Detach 3 | . . . 3 . Swap 23 | . 6 11 1 5 Drop 14 | . 5 5 1 3 Fire 140 | 1 84 43 . 12 Melee 2 | . . . 2 . Ram . | . . . . . Kick . | . . . . . Crush 14 | . 9 5 . . Escape Stasis . | . . . . . Rewire . | . . . . . Trap . | . . . . . Miscellaneous . | . . . . . Route ------- -11/Scrapyard -10/Materials (discovered 3 exits: *Mat x2 / *Min) -10/Mines (discovered 4 exits: *Mat x2 / *Exi / [*Sub]) -10/Exiles (discovered 2 exits: *Min x2) -9/Mines (discovered 1 exit: [*Mat]) History --------- Turn | Location | Event 6 | -11/Scrapyard | Discovered new exit (range 15) 74 | -11/Scrapyard | Entered Materials 304 | -10/Materials | Build established: Mutant 480 | -10/Materials | Discovered new exit (range 4) 698 | -10/Materials | Discovered new exit (range 14) 1191 | -10/Materials | Discovered new exit (range 6) 1625 | -10/Materials | Identified exit to Mines 1651 | -10/Materials | Entered Mines 1997 | -10/Mines | Discovered new exit (range 7) 2038 | -10/Mines | Core integrity fell below 50% 2247 | -10/Mines | Discovered new exit (range 15) 2263 | -10/Mines | Met a Derelict testing a Signal Generator 2336 | -10/Mines | Identified exit to Materials 2604 | -10/Mines | Met a Derelict shopkeep closing up shop 2683 | -10/Mines | Excavation squad dispatched 2683 | -10/Mines | A large section of the Mines collapsed 2749 | -10/Mines | Found a damaged Exp. Sensor Array with a note attached 2752 | -10/Mines | Found Prototype Device 2766 | -10/Mines | Discovered new exit (range 9) 2884 | -10/Mines | Deemed a non-threat by the Exiles lab entrance 2884 | -10/Mines | Discovered new exit (range 5) 2891 | -10/Mines | Entered Exiles 2912 | -10/Exiles | Discovered new exit (range 15) 2959 | -10/Exiles | Met 8R-AWN 2987 | -10/Exiles | Met EX-HEX 3132 | -10/Exiles | Met EX-DEC 3141 | -10/Exiles | Learned location of Zion (-6) 3234 | -10/Exiles | Discovered new exit (range 14) 3354 | -10/Exiles | Visited The Gauntlet 3591 | -10/Exiles | Met EX-BIN 3610 | -10/Exiles | Aligned with FarCom system 3612 | -10/Exiles | Given EX-Vault access code 3648 | -10/Exiles | Opened EX-Vault 3663 | -10/Exiles | Found Cloak of Protection 3698 | -10/Exiles | Warned to stay clear of 0b10 Research branches 3818 | -10/Exiles | Left Exiles lab with Cloak of Protection 3818 | -10/Exiles | Entered Mines 3954 | -9/Mines | A weapon hastily lodged in a ceiling crevice suddenly fell to the ground 3989 | -9/Mines | Found the Drone Emporium 4131 | -9/Mines | Assembled infested the area 4137 | -9/Mines | Discovered new exit (range 8) 4140 | -9/Mines | Received a Mining Laser from a helpful Derelict 4140 | -9/Mines | Core integrity fell below 20% 4147 | -9/Mines | Destroyed by D-53 Grenadier with Mini Grenade Launcher Last Messages --------------- dispatching Demolisher response squad. 04136_ C-30 ARC bursts open, deploying its payload. 04136_ D-53 Grenadier unfolds itself. 04137_ EXIT=FOUND 04138_ A derelict emerges from the shadows: "What are you doing alone down here?" 04138_ The unstable cave ceiling collapses. 04140_ V6-79H(g): "And why aren't you carrying a mining laser?! Certainly you don't want THEM to uncover you when the ceiling comes crashing down? Here, take my spare." 04140_ The unstable cave ceiling collapses. 04142_ Destroyed Shock Absorption System. 04143_ V6-79H(g): "You're apparently new around these parts, I'll cover you." 04143_ Lgt. Treads destroyed. 04143_ T-07 Excavator destroyed. 04143_ Grenade Launcher destroyed. 04144_ The unstable cave ceiling collapses. Map ----- +----------------------------------------------------+ | ??????## #???????????????????????? | | ???????### #???????????????????????? | | ?????????## ###?????????????????????? | | ??????????## ##????????????????????? | | ???????????# #????????????????????? | | ??????????## ##???????????????????? | | ????????### ###?????????????????? | | ???????## #######???????????? | | ???????# ## ######??????? | | ???????# ##?????? | | ???????# ## ## ##????? | | ???????# ######### ##???? | | ???????# ###???????# ##??? | | ???????# #??????????# #??? | | ???????## #???????????# #??? | | ????????###????????????## ## ##??? | | ????????????????????????# ##?? #???? | | ????????????????????????# #???? #???? | | ????????????????????????# #?????### ##???? | | ????????????????????????# ###???????#????? | | ??????????????????????### # ##???????????? | | ?????????????????????## ###?????????? | | ????????????????????## #?????????? | | ????????????????????# #?????????? | | ????????????????????# ##?????????? | | ????????????????????# @ #?????????? | | ??????????????# # %! #????????? | | ??????????? ### #???????? | | ??????????? #???????#=* #???????? | | ????????????????????# d < #???????? | | ????????????????????# # g #??????? | | ????????????????????# %d #??????? | | ????????????????????#? ; ##??????? | | ?????????????????????### #####???????? | | ??????????????????????? #####???????????? | | ???????????????????????# ????????????????? | | ???????????????????????##????????????????? | | ?????????????????????????????????????????? | | ?????????????????????????????????????????? | | ?????????????????????????????????????????? | | ?????????????????????????????????????????? | | ?????????????????????????????????????????? | | ?????????????????????????????????????????? | | ?????????????????????????????????????????? | | ?????????????????????????????????????????? | | ?????????????????????????????????????????? | | ?????????????????????????????????????????? | | ?????????????????????????????????????????? | | ?????????????????????????????????????????? | | ?????????????????????????????????????????? | +----------------------------------------------------+ Best States ------------- Heat Dissipation 25 Energy Generation 18 Energy Capacity 250 Matter Stores 300 Matter Capacity 300 Sight Range 16 Robot Scan Range 14 Terrain Scan Density 10 Evasion (%) 50 Recoil Reduction 2 Item Schematics ----------------- None Robot Schematics ------------------ None Fabricated ------------ Nothing Repaired ---------- Nothing Alien Tech Used ----------------- None Achievements -------------- None Challenges ------------ None Game ------ Seed IonGodAutobeam Manual? 0 Play Time 00:42:08 Cumulative 9.6 hours Start 2025.05.09 @ 22:31:21 End 2025.05.09 @ 23:21:41 Sessions 1 Manual Loads 0 Difficulty Rogue Special Mode None Game No. 9 Rogue 9 Adventurer 0 Explorer 0 Win Type - Total 0 Types 0/0/0/0/0/0/0/0/0/0 Lore% 6 Gallery% 16 Achievement% 16 Wizard Run 0 Options --------- Layout 1 ASCII 0 Keyboard 0 Movement Mouse Keybinds 0 Fullscreen 2 Font 24/Terminus Map View 50x35 Zoom Use 0% Tactical HUD 1 Map Filters NONE Filters NONE Steam 1 RUN: 6ce16d56-5ce9-4dc0-866a-9f8256b0c4f9